[Event "Titled Tuesday Blitz August 09 Early 2022"]
[White "Garriga Cazorla, Pere"]
[Black "Le, Tuan Minh"]
[WhiteFideId "32011601"]
[BlackFideId "12401153"]
[WhiteElo "2826"]
[BlackElo "2976"]
[Result "0-1"]
[Round "08"]
[TimeControl "180+1"]
[Date "2022.08.09"]
[WhiteClock "0:01:34"]
[BlackClock "0:00:20"]

1. d4 {[%clk 0:03:00]}  d5 {[%clk 0:02:50]} 2. c4 {[%clk 0:03:00]}  c6 {[%clk 0:02:50]} 3. Nf3 {[%clk 0:02:58]}  Nf6 {[%clk 0:02:50]} 4. Nc3 {[%clk 0:02:57]}  a6 {[%clk 0:02:47]} 5. e3 {[%clk 0:02:45]}  Bf5 {[%clk 0:02:47]} 6. Nh4 {[%clk 0:02:42]}  Be4 {[%clk 0:02:46]} 7. f3 {[%clk 0:02:42]}  Bg6 {[%clk 0:02:46]} 8. Bd2 {[%clk 0:02:40]}  e6 {[%clk 0:02:46]} 9. Qb3 {[%clk 0:02:39]}  b5 {[%clk 0:02:46]} 10. cxb5 {[%clk 0:02:38]}  cxb5 {[%clk 0:02:44]} 11. Nxg6 {[%clk 0:02:38]}  hxg6 {[%clk 0:02:44]} 12. a4 {[%clk 0:02:35]}  b4 {[%clk 0:02:42]} 13. Ne2 {[%clk 0:02:36]}  a5 {[%clk 0:02:39]} 14. Nf4 {[%clk 0:02:35]}  Bd6 {[%clk 0:02:38]} 15. Bb5+ {[%clk 0:02:35]}  Nbd7 {[%clk 0:02:37]} 16. O-O-O {[%clk 0:02:21]}  O-O {[%clk 0:02:28]} 17. g4 {[%clk 0:02:16]}  Nb6 {[%clk 0:02:25]} 18. Kb1 {[%clk 0:02:15]}  Rc8 {[%clk 0:02:18]} 19. h4 {[%clk 0:02:15]}  Nc4 {[%clk 0:02:16]} 20. Bc1 {[%clk 0:02:15]}  Qe7 {[%clk 0:01:02]} 21. Ne2 {[%clk 0:01:59]}  Rc7 {[%clk 0:00:59]} 22. h5 {[%clk 0:01:56]}  Rfc8 {[%clk 0:00:52]} 23. hxg6 {[%clk 0:01:43]}  fxg6 {[%clk 0:00:53]} 24. e4 {[%clk 0:01:43]}  dxe4 {[%clk 0:00:43]} 25. g5 {[%clk 0:01:35]}  Nh5 {[%clk 0:00:19]} 26. fxe4 {[%clk 0:01:34]}  e5 {[%clk 0:00:20]} 0-1


[Site "https://www.chess.com"]

[Event "Titled Tuesday Blitz August 09 Early 2022"]
[White "Gatterer, Florian"]
[Black "Orlov, Georgi"]
[WhiteFideId "811688"]
[BlackFideId "2011271"]
[WhiteElo "2218"]
[BlackElo "2582"]
[Result "0-1"]
[Round "08"]
[TimeControl "180+1"]
[Date "2022.08.09"]
[WhiteClock "0:01:53"]
[BlackClock "0:01:55"]

1. c4 {[%clk 0:03:00]}  Nc6 {[%clk 0:02:32]} 2. Nf3 {[%clk 0:02:57]}  e5 {[%clk 0:02:31]} 3. Nc3 {[%clk 0:02:56]}  f5 {[%clk 0:02:32]} 4. d4 {[%clk 0:02:54]}  e4 {[%clk 0:02:31]} 5. d5 {[%clk 0:02:55]}  exf3 {[%clk 0:02:28]} 6. dxc6 {[%clk 0:02:54]}  bxc6 {[%clk 0:02:26]} 7. gxf3 {[%clk 0:02:44]}  Nf6 {[%clk 0:02:25]} 8. Rg1 {[%clk 0:02:40]}  g6 {[%clk 0:02:21]} 9. b3 {[%clk 0:02:38]}  Bg7 {[%clk 0:02:21]} 10. Bb2 {[%clk 0:02:38]}  O-O {[%clk 0:02:20]} 11. Qc2 {[%clk 0:02:36]}  d6 {[%clk 0:02:17]} 12. O-O-O {[%clk 0:02:33]}  Qe7 {[%clk 0:02:16]} 13. e3 {[%clk 0:02:32]}  Be6 {[%clk 0:02:14]} 14. Bd3 {[%clk 0:02:29]}  Rab8 {[%clk 0:02:05]} 15. Rde1 {[%clk 0:02:26]}  Nd7 {[%clk 0:02:04]} 16. f4 {[%clk 0:02:22]}  Nc5 {[%clk 0:02:02]} 17. Be2 {[%clk 0:02:21]}  a5 {[%clk 0:02:00]} 18. Bf3 {[%clk 0:02:19]}  a4 {[%clk 0:01:59]} 19. Nxa4 {[%clk 0:02:05]}  Nxa4 {[%clk 0:01:58]} 20. Bxg7 {[%clk 0:01:52]}  Qxg7 {[%clk 0:01:58]} 21. b4 {[%clk 0:01:53]}  Rxb4 {[%clk 0:01:55]} 0-1


[Site "https://www.chess.com"]

[Event "Titled Tuesday Blitz August 09 Early 2022"]
[White "Gubanov, Oleg"]
[Black "Lakshmi C"]
[WhiteFideId "14115115"]
[BlackFideId "25035347"]
[WhiteElo "2080"]
[BlackElo "1775"]
[Result "1-0"]
[Round "08"]
[TimeControl "180+1"]
[Date "2022.08.09"]
[WhiteClock "0:00:11"]
[BlackClock "0:00:05"]

1. e4 {[%clk 0:03:00]}  e5 {[%clk 0:02:38]} 2. Nf3 {[%clk 0:02:57]}  Nc6 {[%clk 0:02:34]} 3. c3 {[%clk 0:02:57]}  Nf6 {[%clk 0:02:29]} 4. d4 {[%clk 0:02:57]}  Nxe4 {[%clk 0:02:29]} 5. d5 {[%clk 0:02:56]}  Ne7 {[%clk 0:02:23]} 6. Nxe5 {[%clk 0:02:45]}  d6 {[%clk 0:02:17]} 7. Nf3 {[%clk 0:02:36]}  Nf6 {[%clk 0:02:11]} 8. c4 {[%clk 0:02:35]}  Bg4 {[%clk 0:02:08]} 9. Be2 {[%clk 0:02:32]}  Ng6 {[%clk 0:02:06]} 10. O-O {[%clk 0:02:27]}  Be7 {[%clk 0:02:06]} 11. h3 {[%clk 0:02:27]}  Bd7 {[%clk 0:02:03]} 12. Re1 {[%clk 0:02:21]}  O-O {[%clk 0:02:00]} 13. b3 {[%clk 0:02:19]}  c6 {[%clk 0:01:55]} 14. Nc3 {[%clk 0:02:17]}  Qa5 {[%clk 0:01:48]} 15. Bd2 {[%clk 0:02:11]}  Qc7 {[%clk 0:01:41]} 16. Be3 {[%clk 0:01:39]}  Rfe8 {[%clk 0:01:31]} 17. Qd2 {[%clk 0:01:33]}  Bf5 {[%clk 0:01:09]} 18. Nd4 {[%clk 0:01:29]}  Bd7 {[%clk 0:01:08]} 19. Rad1 {[%clk 0:01:19]}  Bf8 {[%clk 0:01:05]} 20. dxc6 {[%clk 0:01:06]}  bxc6 {[%clk 0:01:02]} 21. Bd3 {[%clk 0:00:59]}  Ne5 {[%clk 0:00:55]} 22. Bf5 {[%clk 0:00:59]}  Be6 {[%clk 0:00:52]} 23. Bxe6 {[%clk 0:00:45]}  fxe6 {[%clk 0:00:52]} 24. Bf4 {[%clk 0:00:45]}  Nfd7 {[%clk 0:00:20]} 25. Bg3 {[%clk 0:00:30]}  Rad8 {[%clk 0:00:19]} 26. Qf4 {[%clk 0:00:19]}  Nf6 {[%clk 0:00:17]} 27. Qe3 {[%clk 0:00:16]}  Ned7 {[%clk 0:00:10]} 28. Nxe6 {[%clk 0:00:15]}  Qa5 {[%clk 0:00:08]} 29. Qd2 {[%clk 0:00:14]}  Rc8 {[%clk 0:00:07]} 30. Nxf8 {[%clk 0:00:14]}  Nxf8 {[%clk 0:00:06]} 31. Rxe8 {[%clk 0:00:13]}  Nxe8 {[%clk 0:00:05]} 32. Ne4 {[%clk 0:00:12]}  d5 {[%clk 0:00:05]} 33. Qxa5 {[%clk 0:00:11]} 1-0


[Site "https://www.chess.com"]

[Event "Titled Tuesday Blitz August 09 Early 2022"]
[White "Gurevich, Dmitry"]
[Black "Skliarov, Viktor"]
[WhiteFideId "2000407"]
[BlackFideId "14106736"]
[WhiteElo "2551"]
[BlackElo "2664"]
[Result "1-0"]
[Round "08"]
[TimeControl "180+1"]
[Date "2022.08.09"]
[WhiteClock "0:00:23"]
[BlackClock "0:00:02"]

1. d4 {[%clk 0:03:00]}  Nf6 {[%clk 0:02:59]} 2. c4 {[%clk 0:03:01]}  e6 {[%clk 0:03:00]} 3. Nf3 {[%clk 0:02:59]}  b6 {[%clk 0:03:00]} 4. g3 {[%clk 0:02:59]}  Bb7 {[%clk 0:03:01]} 5. Bg2 {[%clk 0:02:58]}  Be7 {[%clk 0:03:01]} 6. Nc3 {[%clk 0:02:57]}  O-O {[%clk 0:03:01]} 7. Qc2 {[%clk 0:02:54]}  c5 {[%clk 0:03:00]} 8. d5 {[%clk 0:02:49]}  exd5 {[%clk 0:02:59]} 9. Nh4 {[%clk 0:02:47]}  d6 {[%clk 0:02:50]} 10. Nf5 {[%clk 0:02:47]}  Re8 {[%clk 0:02:48]} 11. Ne3 {[%clk 0:02:45]}  Nc6 {[%clk 0:02:29]} 12. Ncxd5 {[%clk 0:02:45]}  Nxd5 {[%clk 0:02:27]} 13. Nxd5 {[%clk 0:02:44]}  Nd4 {[%clk 0:01:47]} 14. Qd1 {[%clk 0:02:43]}  b5 {[%clk 0:01:16]} 15. e3 {[%clk 0:02:25]}  Ne6 {[%clk 0:01:13]} 16. cxb5 {[%clk 0:02:14]}  Qa5+ {[%clk 0:01:13]} 17. Bd2 {[%clk 0:02:09]}  Qxb5 {[%clk 0:01:11]} 18. Bc3 {[%clk 0:02:06]}  Bf8 {[%clk 0:01:01]} 19. Qe2 {[%clk 0:01:50]}  Qxe2+ {[%clk 0:00:43]} 20. Kxe2 {[%clk 0:01:50]}  Ba6+ {[%clk 0:00:44]} 21. Kd2 {[%clk 0:01:47]}  Rab8 {[%clk 0:00:44]} 22. b3 {[%clk 0:01:42]}  Ng5 {[%clk 0:00:40]} 23. f3 {[%clk 0:01:26]}  Bb7 {[%clk 0:00:39]} 24. e4 {[%clk 0:01:25]}  f5 {[%clk 0:00:30]} 25. Rhe1 {[%clk 0:01:14]}  fxe4 {[%clk 0:00:25]} 26. fxe4 {[%clk 0:01:13]}  Nf7 {[%clk 0:00:25]} 27. Bf1 {[%clk 0:00:56]}  Ne5 {[%clk 0:00:25]} 28. Bxe5 {[%clk 0:00:55]}  Rxe5 {[%clk 0:00:20]} 29. Bc4 {[%clk 0:00:55]}  g6 {[%clk 0:00:13]} 30. Nf6+ {[%clk 0:00:47]}  Kg7 {[%clk 0:00:11]} 31. Nd7 {[%clk 0:00:47]}  Rbe8 {[%clk 0:00:11]} 32. Nxe5 {[%clk 0:00:46]}  Rxe5 {[%clk 0:00:11]} 33. Kd3 {[%clk 0:00:45]}  Be7 {[%clk 0:00:08]} 34. Re2 {[%clk 0:00:44]}  Bf6 {[%clk 0:00:07]} 35. Rf1 {[%clk 0:00:44]}  h5 {[%clk 0:00:05]} 36. h4 {[%clk 0:00:43]}  Bc6 {[%clk 0:00:04]} 37. Rf4 {[%clk 0:00:42]}  Bd8 {[%clk 0:00:03]} 38. Rf7+ {[%clk 0:00:38]}  Kh6 {[%clk 0:00:02]} 39. Rxa7 {[%clk 0:00:35]}  Re8 {[%clk 0:00:02]} 40. Ra6 {[%clk 0:00:34]}  Bb7 {[%clk 0:00:01]} 41. Rxd6 {[%clk 0:00:34]}  Bc7 {[%clk 0:00:01]} 42. e5 {[%clk 0:00:32]}  Bxd6 {[%clk 0:00:01]} 43. exd6 {[%clk 0:00:32]}  Rd8 {[%clk 0:00:02]} 44. Re6 {[%clk 0:00:32]}  Bc8 {[%clk 0:00:02]} 45. Rf6 {[%clk 0:00:31]}  Kg7 {[%clk 0:00:02]} 46. Rf7+ {[%clk 0:00:31]}  Kh6 {[%clk 0:00:03]} 47. Kc3 {[%clk 0:00:26]}  Rxd6 {[%clk 0:00:03]} 48. a4 {[%clk 0:00:25]}  Be6 {[%clk 0:00:02]} 49. Rf6 {[%clk 0:00:23]} 1-0


[Site "https://www.chess.com"]

[Event "Titled Tuesday Blitz August 09 Early 2022"]
[White "Hoffmann, Asa"]
[Black "Ferreira, Vitor Hugo Vieira"]
[WhiteFideId "2001470"]
[BlackFideId "2119765"]
[WhiteElo "2117"]
[BlackElo "2168"]
[Result "1/2-1/2"]
[Round "08"]
[TimeControl "180+1"]
[Date "2022.08.09"]
[WhiteClock "0:00:15"]
[BlackClock "0:00:10"]

1. d4 {[%clk 0:02:59]}  d5 {[%clk 0:02:39]} 2. Bg5 {[%clk 0:02:57]}  c5 {[%clk 0:02:37]} 3. dxc5 {[%clk 0:02:55]}  Qa5+ {[%clk 0:02:37]} 4. Nc3 {[%clk 0:02:52]}  Qxc5 {[%clk 0:02:38]} 5. Qxd5 {[%clk 0:02:50]}  Nd7 {[%clk 0:02:32]} 6. Qxc5 {[%clk 0:02:37]}  Nxc5 {[%clk 0:02:32]} 7. Nb5 {[%clk 0:02:37]}  Ne6 {[%clk 0:02:30]} 8. Be3 {[%clk 0:02:36]}  a6 {[%clk 0:02:30]} 9. Nc3 {[%clk 0:02:30]}  g6 {[%clk 0:02:31]} 10. g3 {[%clk 0:02:27]}  Nf6 {[%clk 0:02:31]} 11. Bg2 {[%clk 0:02:27]}  Bg7 {[%clk 0:02:31]} 12. Nf3 {[%clk 0:02:26]}  Ng4 {[%clk 0:02:30]} 13. Bb6 {[%clk 0:02:23]}  Bxc3+ {[%clk 0:02:25]} 14. bxc3 {[%clk 0:02:22]}  O-O {[%clk 0:02:26]} 15. h3 {[%clk 0:02:19]}  Nf6 {[%clk 0:02:26]} 16. Nd4 {[%clk 0:02:18]}  Bd7 {[%clk 0:02:22]} 17. O-O {[%clk 0:02:13]}  Rac8 {[%clk 0:02:21]} 18. Rab1 {[%clk 0:01:50]}  Rxc3 {[%clk 0:02:18]} 19. Bxb7 {[%clk 0:01:48]}  Rb8 {[%clk 0:02:15]} 20. Bxa6 {[%clk 0:01:46]}  Rxb6 {[%clk 0:02:15]} 21. Rxb6 {[%clk 0:01:43]}  Nxd4 {[%clk 0:02:14]} 22. Rd1 {[%clk 0:01:35]}  Rc6 {[%clk 0:02:07]} 23. Rxc6 {[%clk 0:01:21]}  Nxc6 {[%clk 0:02:07]} 24. Bb5 {[%clk 0:01:17]}  Ne5 {[%clk 0:02:07]} 25. a4 {[%clk 0:01:13]}  Bxb5 {[%clk 0:02:04]} 26. axb5 {[%clk 0:01:12]}  Nc4 {[%clk 0:01:55]} 27. f3 {[%clk 0:01:03]}  Kf8 {[%clk 0:01:53]} 28. Rd8+ {[%clk 0:01:02]}  Kg7 {[%clk 0:01:53]} 29. e4 {[%clk 0:01:02]}  e5 {[%clk 0:01:34]} 30. Kf2 {[%clk 0:00:57]}  Ng8 {[%clk 0:01:34]} 31. Rc8 {[%clk 0:00:54]}  Nd6 {[%clk 0:01:30]} 32. Rc5 {[%clk 0:00:50]}  Kf6 {[%clk 0:01:27]} 33. c4 {[%clk 0:00:49]}  Ke6 {[%clk 0:01:25]} 34. Ke3 {[%clk 0:00:48]}  Ne7 {[%clk 0:01:25]} 35. f4 {[%clk 0:00:47]}  f6 {[%clk 0:01:22]} 36. Rc7 {[%clk 0:00:44]}  f5 {[%clk 0:01:16]} 37. exf5+ {[%clk 0:00:40]}  Nexf5+ {[%clk 0:01:16]} 38. Kf3 {[%clk 0:00:38]}  e4+ {[%clk 0:01:16]} 39. Kf2 {[%clk 0:00:38]}  h5 {[%clk 0:01:09]} 40. b6 {[%clk 0:00:38]}  e3+ {[%clk 0:00:54]} 41. Kf3 {[%clk 0:00:35]}  e2 {[%clk 0:00:48]} 42. Kxe2 {[%clk 0:00:35]}  Nxg3+ {[%clk 0:00:48]} 43. Kf3 {[%clk 0:00:35]}  Ngf5 {[%clk 0:00:48]} 44. c5 {[%clk 0:00:35]}  Nb5 {[%clk 0:00:45]} 45. Rc6+ {[%clk 0:00:31]}  Kd7 {[%clk 0:00:44]} 46. Rd6+ {[%clk 0:00:31]}  Nfxd6 {[%clk 0:00:42]} 47. cxd6 {[%clk 0:00:30]}  Nxd6 {[%clk 0:00:40]} 48. Kg3 {[%clk 0:00:28]}  Nf5+ {[%clk 0:00:40]} 49. Kf3 {[%clk 0:00:27]}  Kc6 {[%clk 0:00:40]} 50. Ke4 {[%clk 0:00:27]}  Kxb6 {[%clk 0:00:32]} 51. Ke5 {[%clk 0:00:26]}  Kc5 {[%clk 0:00:26]} 52. Kf6 {[%clk 0:00:26]}  Nh4 {[%clk 0:00:25]} 53. Kg5 {[%clk 0:00:26]}  Nf3+ {[%clk 0:00:14]} 54. Kxg6 {[%clk 0:00:26]}  h4 {[%clk 0:00:14]} 55. f5 {[%clk 0:00:26]}  Kd5 {[%clk 0:00:13]} 56. f6 {[%clk 0:00:25]}  Ke4 {[%clk 0:00:13]} 57. f7 {[%clk 0:00:23]}  Ne5+ {[%clk 0:00:13]} 58. Kh5 {[%clk 0:00:22]}  Nxf7 {[%clk 0:00:12]} 59. Kxh4 {[%clk 0:00:22]}  Kf4 {[%clk 0:00:13]} 60. Kh5 {[%clk 0:00:22]}  Kf5 {[%clk 0:00:12]} 61. h4 {[%clk 0:00:21]}  Ne5 {[%clk 0:00:12]} 62. Kh6 {[%clk 0:00:21]}  Kf6 {[%clk 0:00:12]} 63. Kh5 {[%clk 0:00:21]}  Kf5 {[%clk 0:00:11]} 64. Kh6 {[%clk 0:00:20]}  Nf7+ {[%clk 0:00:10]} 65. Kh5 {[%clk 0:00:20]}  Nd6 {[%clk 0:00:09]} 66. Kh6 {[%clk 0:00:19]}  Ne4 {[%clk 0:00:09]} 67. Kg7 {[%clk 0:00:19]}  Kg4 {[%clk 0:00:09]} 68. Kf7 {[%clk 0:00:18]}  Kh5 {[%clk 0:00:09]} 69. Ke6 {[%clk 0:00:16]}  Ng3 {[%clk 0:00:10]} 70. Ke5 {[%clk 0:00:15]}  Kxh4 {[%clk 0:00:10]} 1/2-1/2


[Site "https://www.chess.com"]

[Event "Titled Tuesday Blitz August 09 Early 2022"]
[White "Hosseinzadeh, Nima"]
[Black "Namitbir Singh Walia"]
[WhiteFideId "12505323"]
[BlackFideId "35071068"]
[WhiteElo "2045"]
[BlackElo "1664"]
[Result "1-0"]
[Round "08"]
[TimeControl "180+1"]
[Date "2022.08.09"]
[WhiteClock "0:01:22"]
[BlackClock "0:00:01"]

1. e4 {[%clk 0:02:57]}  c5 {[%clk 0:02:59]} 2. Nf3 {[%clk 0:02:57]}  Nc6 {[%clk 0:03:00]} 3. d4 {[%clk 0:02:58]}  cxd4 {[%clk 0:03:01]} 4. Nxd4 {[%clk 0:02:59]}  g6 {[%clk 0:03:01]} 5. c4 {[%clk 0:02:59]}  Nf6 {[%clk 0:03:01]} 6. Nc3 {[%clk 0:02:58]}  d6 {[%clk 0:03:02]} 7. f3 {[%clk 0:02:57]}  Nxd4 {[%clk 0:03:00]} 8. Qxd4 {[%clk 0:02:58]}  Bg7 {[%clk 0:03:01]} 9. Be3 {[%clk 0:02:59]}  O-O {[%clk 0:03:00]} 10. Qd2 {[%clk 0:02:59]}  Qa5 {[%clk 0:02:59]} 11. Rc1 {[%clk 0:02:56]}  Be6 {[%clk 0:02:58]} 12. Be2 {[%clk 0:02:54]}  Rfc8 {[%clk 0:02:56]} 13. b3 {[%clk 0:02:54]}  a6 {[%clk 0:02:56]} 14. Na4 {[%clk 0:02:51]}  Qxd2+ {[%clk 0:02:52]} 15. Kxd2 {[%clk 0:02:52]}  Nd7 {[%clk 0:02:53]} 16. g4 {[%clk 0:02:53]}  Rab8 {[%clk 0:02:46]} 17. h4 {[%clk 0:02:46]}  Ne5 {[%clk 0:01:28]} 18. Rhg1 {[%clk 0:02:35]}  b5 {[%clk 0:01:27]} 19. Nb6 {[%clk 0:02:23]}  Re8 {[%clk 0:00:41]} 20. f4 {[%clk 0:02:17]}  Nd7 {[%clk 0:00:41]} 21. Nd5 {[%clk 0:01:51]}  Bxd5 {[%clk 0:00:39]} 22. cxd5 {[%clk 0:01:52]}  Rec8 {[%clk 0:00:34]} 23. Rc6 {[%clk 0:01:51]}  Rxc6 {[%clk 0:00:21]} 24. dxc6 {[%clk 0:01:51]}  Nc5 {[%clk 0:00:21]} 25. Bf3 {[%clk 0:01:46]}  e5 {[%clk 0:00:18]} 26. Rc1 {[%clk 0:01:41]}  Ne6 {[%clk 0:00:09]} 27. f5 {[%clk 0:01:30]}  Nc7 {[%clk 0:00:06]} 28. g5 {[%clk 0:01:24]}  Bf8 {[%clk 0:00:05]} 29. f6 {[%clk 0:01:23]}  Rc8 {[%clk 0:00:05]} 30. Bg4 {[%clk 0:01:23]}  Rd8 {[%clk 0:00:05]} 31. Bb6 {[%clk 0:01:23]}  d5 {[%clk 0:00:01]} 32. Bxc7 {[%clk 0:01:22]}  Bb4+ {[%clk 0:00:01]} 33. Ke2 {[%clk 0:01:22]}  Re8 {[%clk 0:00:01]} 1-0


[Site "https://www.chess.com"]

[Event "Titled Tuesday Blitz August 09 Early 2022"]
[White "Jaskolka, Tomasz"]
[Black "Petrova, Irina"]
[WhiteFideId "1170791"]
[BlackFideId "14124122"]
[WhiteElo "2073"]
[BlackElo "2021"]
[Result "1-0"]
[Round "08"]
[TimeControl "180+1"]
[Date "2022.08.09"]
[WhiteClock "0:00:12"]
[BlackClock "0:00:13"]

1. d4 {[%clk 0:03:00]}  d6 {[%clk 0:03:00]} 2. Nc3 {[%clk 0:02:59]}  Nf6 {[%clk 0:02:59]} 3. e4 {[%clk 0:02:59]}  e5 {[%clk 0:03:00]} 4. Nf3 {[%clk 0:02:57]}  Nbd7 {[%clk 0:02:59]} 5. Bc4 {[%clk 0:02:53]}  Be7 {[%clk 0:02:58]} 6. O-O {[%clk 0:02:51]}  O-O {[%clk 0:02:58]} 7. h3 {[%clk 0:02:51]}  c6 {[%clk 0:02:50]} 8. a4 {[%clk 0:02:51]}  h6 {[%clk 0:02:45]} 9. Be3 {[%clk 0:02:48]}  Re8 {[%clk 0:02:44]} 10. Qd2 {[%clk 0:02:47]}  Bf8 {[%clk 0:02:42]} 11. Rae1 {[%clk 0:02:40]}  exd4 {[%clk 0:02:34]} 12. Bxd4 {[%clk 0:02:39]}  Qc7 {[%clk 0:02:29]} 13. Bb3 {[%clk 0:02:29]}  Ne5 {[%clk 0:02:24]} 14. Nxe5 {[%clk 0:02:23]}  dxe5 {[%clk 0:02:24]} 15. Be3 {[%clk 0:02:24]}  Be6 {[%clk 0:02:24]} 16. Bxe6 {[%clk 0:02:23]}  Rxe6 {[%clk 0:02:24]} 17. Qe2 {[%clk 0:02:19]}  Rd8 {[%clk 0:02:19]} 18. Rd1 {[%clk 0:02:18]}  Red6 {[%clk 0:02:13]} 19. Rxd6 {[%clk 0:02:13]}  Rxd6 {[%clk 0:02:14]} 20. Bxa7 {[%clk 0:01:52]}  b6 {[%clk 0:02:05]} 21. Qa6 {[%clk 0:01:51]}  b5 {[%clk 0:01:52]} 22. Bc5 {[%clk 0:01:35]}  Rd8 {[%clk 0:01:47]} 23. Bb6 {[%clk 0:01:27]}  Qc8 {[%clk 0:01:44]} 24. axb5 {[%clk 0:01:27]}  cxb5 {[%clk 0:01:42]} 25. Qxb5 {[%clk 0:01:24]}  Re8 {[%clk 0:01:36]} 26. Be3 {[%clk 0:01:21]}  Qa8 {[%clk 0:01:34]} 27. Nd5 {[%clk 0:01:12]}  Rb8 {[%clk 0:01:27]} 28. Nxf6+ {[%clk 0:01:08]}  gxf6 {[%clk 0:01:27]} 29. Qd5 {[%clk 0:00:56]}  Qxd5 {[%clk 0:01:23]} 30. exd5 {[%clk 0:00:57]}  Rxb2 {[%clk 0:01:23]} 31. Rd1 {[%clk 0:00:53]}  Rxc2 {[%clk 0:01:22]} 32. d6 {[%clk 0:00:53]}  Rc8 {[%clk 0:01:05]} 33. d7 {[%clk 0:00:53]}  Rd8 {[%clk 0:01:06]} 34. Bb6 {[%clk 0:00:54]}  Be7 {[%clk 0:01:06]} 35. Bxd8 {[%clk 0:00:53]}  Bxd8 {[%clk 0:01:07]} 36. f3 {[%clk 0:00:53]}  Kf8 {[%clk 0:01:08]} 37. Kf2 {[%clk 0:00:53]}  Ke7 {[%clk 0:01:08]} 38. g4 {[%clk 0:00:54]}  Bb6+ {[%clk 0:01:07]} 39. Kg3 {[%clk 0:00:54]}  Kd8 {[%clk 0:01:06]} 40. f4 {[%clk 0:00:52]}  Bc7 {[%clk 0:01:04]} 41. f5 {[%clk 0:00:53]}  Bb6 {[%clk 0:00:58]} 42. Kf3 {[%clk 0:00:50]}  Bd4 {[%clk 0:00:55]} 43. Rb1 {[%clk 0:00:37]}  Kxd7 {[%clk 0:00:55]} 44. Rb8 {[%clk 0:00:37]}  Bc3 {[%clk 0:00:50]} 45. Ke2 {[%clk 0:00:27]}  Ke7 {[%clk 0:00:27]} 46. Rh8 {[%clk 0:00:25]}  Bb2 {[%clk 0:00:25]} 47. Rxh6 {[%clk 0:00:26]}  Kf8 {[%clk 0:00:25]} 48. Rh8+ {[%clk 0:00:26]}  Kg7 {[%clk 0:00:26]} 49. Ra8 {[%clk 0:00:26]}  Bd4 {[%clk 0:00:25]} 50. Kf3 {[%clk 0:00:26]}  Bc3 {[%clk 0:00:25]} 51. h4 {[%clk 0:00:25]}  Bd2 {[%clk 0:00:24]} 52. Ra4 {[%clk 0:00:16]}  Be1 {[%clk 0:00:23]} 53. g5 {[%clk 0:00:15]}  Bd2 {[%clk 0:00:21]} 54. Kg4 {[%clk 0:00:15]}  Be3 {[%clk 0:00:18]} 55. Ra6 {[%clk 0:00:15]}  fxg5 {[%clk 0:00:16]} 56. hxg5 {[%clk 0:00:16]}  Bd2 {[%clk 0:00:15]} 57. f6+ {[%clk 0:00:13]}  Kg6 {[%clk 0:00:16]} 58. Ra8 {[%clk 0:00:13]}  e4 {[%clk 0:00:13]} 59. Rg8+ {[%clk 0:00:13]}  Kh7 {[%clk 0:00:13]} 60. Rg7+ {[%clk 0:00:14]}  Kh8 {[%clk 0:00:13]} 61. Rxf7 {[%clk 0:00:14]}  e3 {[%clk 0:00:14]} 62. Re7 {[%clk 0:00:12]}  Kg8 {[%clk 0:00:13]} 63. g6 {[%clk 0:00:12]}  Kf8 {[%clk 0:00:13]} 64. g7+ {[%clk 0:00:12]} 1-0


[Site "https://www.chess.com"]

[Event "Titled Tuesday Blitz August 09 Early 2022"]
[White "Kashefi, Amir Hosein"]
[Black "Korchmar, Vasiliy"]
[WhiteFideId "12557935"]
[BlackFideId "24131750"]
[WhiteElo "1962"]
[BlackElo "2370"]
[Result "0-1"]
[Round "08"]
[TimeControl "180+1"]
[Date "2022.08.09"]
[WhiteClock "0:02:13"]
[BlackClock "0:02:32"]

1. d4 {[%clk 0:02:59]}  d5 {[%clk 0:02:59]} 2. c4 {[%clk 0:02:57]}  c6 {[%clk 0:02:59]} 3. Nc3 {[%clk 0:02:58]}  Nf6 {[%clk 0:02:59]} 4. cxd5 {[%clk 0:02:57]}  cxd5 {[%clk 0:02:59]} 5. Nf3 {[%clk 0:02:58]}  Nc6 {[%clk 0:02:59]} 6. e3 {[%clk 0:02:58]}  Bg4 {[%clk 0:02:58]} 7. h3 {[%clk 0:02:57]}  Bxf3 {[%clk 0:02:56]} 8. Qxf3 {[%clk 0:02:57]}  e6 {[%clk 0:02:57]} 9. Bd3 {[%clk 0:02:56]}  Be7 {[%clk 0:02:56]} 10. O-O {[%clk 0:02:57]}  O-O {[%clk 0:02:56]} 11. a3 {[%clk 0:02:56]}  Rc8 {[%clk 0:02:55]} 12. Bd2 {[%clk 0:02:56]}  Na5 {[%clk 0:02:53]} 13. Rad1 {[%clk 0:02:52]}  a6 {[%clk 0:02:51]} 14. Bb1 {[%clk 0:02:51]}  Nc4 {[%clk 0:02:50]} 15. Bc1 {[%clk 0:02:51]}  Nxa3 {[%clk 0:02:49]} 16. bxa3 {[%clk 0:02:41]}  Rxc3 {[%clk 0:02:48]} 17. a4 {[%clk 0:02:41]}  Rc4 {[%clk 0:02:41]} 18. Bd2 {[%clk 0:02:22]}  Rxa4 {[%clk 0:02:41]} 19. Bc2 {[%clk 0:02:22]}  Ra2 {[%clk 0:02:40]} 20. Bb3 {[%clk 0:02:22]}  Rb2 {[%clk 0:02:39]} 21. Rb1 {[%clk 0:02:20]}  Rxd2 {[%clk 0:02:39]} 22. Qf4 {[%clk 0:02:13]}  Bd6 {[%clk 0:02:33]} 23. Qg5 {[%clk 0:02:13]}  Ne4 {[%clk 0:02:32]} 24. Qh4 {[%clk 0:02:13]}  Qxh4 {[%clk 0:02:32]} 0-1


[Site "https://www.chess.com"]

[Event "Titled Tuesday Blitz August 09 Early 2022"]
[White "Khabinets, Ivan"]
[Black "Srihari L R"]
[WhiteFideId "14115980"]
[BlackFideId "46617116"]
[WhiteElo "2618"]
[BlackElo "2726"]
[Result "0-1"]
[Round "08"]
[TimeControl "180+1"]
[Date "2022.08.09"]
[WhiteClock "0:02:00"]
[BlackClock "0:02:17"]

1. e4 {[%clk 0:03:00]}  c5 {[%clk 0:02:59]} 2. Nf3 {[%clk 0:03:00]}  e6 {[%clk 0:02:59]} 3. g3 {[%clk 0:03:00]}  g6 {[%clk 0:02:57]} 4. Bg2 {[%clk 0:03:00]}  Bg7 {[%clk 0:02:57]} 5. O-O {[%clk 0:03:00]}  Nc6 {[%clk 0:02:58]} 6. c3 {[%clk 0:03:00]}  d5 {[%clk 0:02:55]} 7. d3 {[%clk 0:02:55]}  Nf6 {[%clk 0:02:49]} 8. Qe2 {[%clk 0:02:55]}  c4 {[%clk 0:02:47]} 9. exd5 {[%clk 0:02:52]}  cxd3 {[%clk 0:02:45]} 10. Qxd3 {[%clk 0:02:53]}  Qxd5 {[%clk 0:02:45]} 11. Nd4 {[%clk 0:02:46]}  Qd7 {[%clk 0:02:44]} 12. Be3 {[%clk 0:02:43]}  e5 {[%clk 0:02:42]} 13. Qe2 {[%clk 0:02:28]}  exd4 {[%clk 0:02:39]} 14. Bh6+ {[%clk 0:02:29]}  Kf8 {[%clk 0:02:38]} 15. Bxg7+ {[%clk 0:02:22]}  Kxg7 {[%clk 0:02:39]} 16. Rd1 {[%clk 0:02:23]}  Qe6 {[%clk 0:02:35]} 17. Qd2 {[%clk 0:02:18]}  Rd8 {[%clk 0:02:33]} 18. Na3 {[%clk 0:02:12]}  dxc3 {[%clk 0:02:30]} 19. Qxc3 {[%clk 0:02:13]}  Rxd1+ {[%clk 0:02:29]} 20. Rxd1 {[%clk 0:02:14]}  Qe5 {[%clk 0:02:28]} 21. Qb3 {[%clk 0:02:09]}  Bg4 {[%clk 0:02:23]} 22. Rc1 {[%clk 0:02:07]}  Re8 {[%clk 0:02:21]} 23. Nc4 {[%clk 0:02:05]}  Qe7 {[%clk 0:02:18]} 24. h3 {[%clk 0:02:02]}  Nd4 {[%clk 0:02:17]} 25. Qc3 {[%clk 0:02:00]} 0-1


[Site "https://www.chess.com"]